[Event "December 5 Late 2023"]
[Site "https://www.chess.com"]
[Date "2023.12.05"]
[Round "10"]
[White "Kovalevsky, Stanislav"]
[Black "Rosen, Eric"]
[Result "0-1"]
[Board "44"]
[TimeControl "180+1"]
[WhiteFideId "13508598"]
[BlackFideId "2032562"]
[WhiteElo "2508"]
[BlackElo "2684"]
[WhiteTeam "FID"]
[BlackTeam "USA"]
[WhiteClock "0:00:00"]
[BlackClock "0:00:02"]

1. e4 {[%clk 0:03:00]}  e5 {[%clk 0:02:59]} 2. Nf3 {[%clk 0:03:00]}  Nf6 {[%clk 0:03:00]} 3. Nc3 {[%clk 0:02:58]}  Bc5 {[%clk 0:02:59]} 4. Bc4 {[%clk 0:02:50]}  Nc6 {[%clk 0:02:59]} 5. O-O {[%clk 0:02:48]}  d6 {[%clk 0:02:59]} 6. h3 {[%clk 0:02:46]}  h6 {[%clk 0:02:59]} 7. d3 {[%clk 0:02:42]}  g5 {[%clk 0:02:59]} 8. Nd5 {[%clk 0:02:33]}  g4 {[%clk 0:02:58]} 9. Nh2 {[%clk 0:02:08]}  g3 {[%clk 0:02:44]} 10. Nf3 {[%clk 0:01:54]}  Bxf2+ {[%clk 0:02:43]} 11. Rxf2 {[%clk 0:01:39]}  gxf2+ {[%clk 0:02:44]} 12. Kxf2 {[%clk 0:01:39]}  Nxd5 {[%clk 0:02:45]} 13. Bxd5 {[%clk 0:01:39]}  Ne7 {[%clk 0:02:45]} 14. Bb3 {[%clk 0:01:37]}  Ng6 {[%clk 0:02:32]} 15. Be3 {[%clk 0:01:34]}  Be6 {[%clk 0:02:30]} 16. Qd2 {[%clk 0:01:33]}  Qf6 {[%clk 0:02:07]} 17. Bxh6 {[%clk 0:01:23]}  Bxb3 {[%clk 0:01:13]} 18. Bg5 {[%clk 0:01:05]}  Qe6 {[%clk 0:01:12]} 19. axb3 {[%clk 0:01:05]}  f6 {[%clk 0:01:12]} 20. Be3 {[%clk 0:01:03]}  a6 {[%clk 0:01:13]} 21. Qb4 {[%clk 0:00:56]}  Qc8 {[%clk 0:00:38]} 22. Qc4 {[%clk 0:00:45]}  c6 {[%clk 0:00:33]} 23. b4 {[%clk 0:00:38]}  Ke7 {[%clk 0:00:33]} 24. d4 {[%clk 0:00:32]}  Qe6 {[%clk 0:00:30]} 25. d5 {[%clk 0:00:30]}  cxd5 {[%clk 0:00:30]} 26. exd5 {[%clk 0:00:30]}  Qd7 {[%clk 0:00:31]} 27. Qe4 {[%clk 0:00:25]}  Rhg8 {[%clk 0:00:27]} 28. Nd4 {[%clk 0:00:20]}  Ke8 {[%clk 0:00:08]} 29. Nf5 {[%clk 0:00:19]}  Ne7 {[%clk 0:00:09]} 30. Nxe7 {[%clk 0:00:16]}  Qxe7 {[%clk 0:00:08]} 31. g4 {[%clk 0:00:14]}  Rc8 {[%clk 0:00:07]} 32. c3 {[%clk 0:00:14]}  Rh8 {[%clk 0:00:06]} 33. Kg2 {[%clk 0:00:14]}  Qh7 {[%clk 0:00:05]} 34. Qxh7 {[%clk 0:00:14]}  Rxh7 {[%clk 0:00:05]} 35. Kg3 {[%clk 0:00:15]}  Ke7 {[%clk 0:00:05]} 36. b5 {[%clk 0:00:13]}  Ra8 {[%clk 0:00:04]} 37. bxa6 {[%clk 0:00:13]}  Rxa6 {[%clk 0:00:03]} 38. Rxa6 {[%clk 0:00:13]}  bxa6 {[%clk 0:00:04]} 39. h4 {[%clk 0:00:13]}  Rh8 {[%clk 0:00:04]} 40. g5 {[%clk 0:00:12]}  fxg5 {[%clk 0:00:03]} 41. Bxg5+ {[%clk 0:00:12]}  Kf7 {[%clk 0:00:04]} 42. Kg4 {[%clk 0:00:13]}  Rb8 {[%clk 0:00:04]} 43. b4 {[%clk 0:00:12]}  Rc8 {[%clk 0:00:05]} 44. Bd2 {[%clk 0:00:12]}  Rc4+ {[%clk 0:00:04]} 45. Kg5 {[%clk 0:00:12]}  Re4 {[%clk 0:00:02]} 46. h5 {[%clk 0:00:12]}  Re2 {[%clk 0:00:03]} 47. Bc1 {[%clk 0:00:10]}  Rg2+ {[%clk 0:00:03]} 48. Kf5 {[%clk 0:00:10]}  Rf2+ {[%clk 0:00:03]} 49. Ke4 {[%clk 0:00:09]}  Rc2 {[%clk 0:00:04]} 50. Bg5 {[%clk 0:00:08]}  Rxc3 {[%clk 0:00:04]} 51. h6 {[%clk 0:00:07]}  Rc4+ {[%clk 0:00:04]} 52. Kf5 {[%clk 0:00:08]}  Rxb4 {[%clk 0:00:04]} 53. Bf6 {[%clk 0:00:08]}  Rb1 {[%clk 0:00:03]} 54. h7 {[%clk 0:00:08]}  Rf1+ {[%clk 0:00:04]} 55. Kg5 {[%clk 0:00:08]}  Rh1 {[%clk 0:00:02]} 56. h8=Q {[%clk 0:00:08]}  Rxh8 {[%clk 0:00:03]} 57. Bxh8 {[%clk 0:00:09]}  a5 {[%clk 0:00:03]} 58. Kf5 {[%clk 0:00:09]}  a4 {[%clk 0:00:03]} 59. Bf6 {[%clk 0:00:04]}  a3 {[%clk 0:00:03]} 60. Be7 {[%clk 0:00:00]}  Kxe7 {[%clk 0:00:02]} 0-1

[Event "December 5 Late 2023"]
[Site "https://www.chess.com"]
[Date "2023.12.05"]
[Round "10"]
[White "Minko, Dmitry"]
[Black "Ehlvest, Jaan"]
[Result "0-1"]
[Board "47"]
[TimeControl "180+1"]
[WhiteFideId "24188468"]
[BlackFideId "4500016"]
[WhiteElo "2494"]
[BlackElo "2633"]
[WhiteTeam "FID"]
[BlackTeam "USA"]
[WhiteClock "0:00:06"]
[BlackClock "0:00:24"]

1. e4 {[%clk 0:03:00]}  c5 {[%clk 0:02:52]} 2. Nf3 {[%clk 0:03:00]}  Nc6 {[%clk 0:02:50]} 3. d4 {[%clk 0:03:00]}  cxd4 {[%clk 0:02:50]} 4. Nxd4 {[%clk 0:03:01]}  Qb6 {[%clk 0:02:49]} 5. Nb3 {[%clk 0:02:58]}  e6 {[%clk 0:02:49]} 6. Be3 {[%clk 0:02:58]}  Qc7 {[%clk 0:02:47]} 7. Nc3 {[%clk 0:02:57]}  a6 {[%clk 0:02:47]} 8. Qd2 {[%clk 0:02:53]}  b5 {[%clk 0:02:46]} 9. f3 {[%clk 0:02:51]}  Nf6 {[%clk 0:02:37]} 10. O-O-O {[%clk 0:02:48]}  b4 {[%clk 0:02:24]} 11. Na4 {[%clk 0:02:38]}  Rb8 {[%clk 0:02:23]} 12. Bf4 {[%clk 0:02:26]}  e5 {[%clk 0:02:12]} 13. Be3 {[%clk 0:02:23]}  d6 {[%clk 0:02:09]} 14. Bc4 {[%clk 0:01:59]}  Be7 {[%clk 0:02:05]} 15. g4 {[%clk 0:01:52]}  Be6 {[%clk 0:02:05]} 16. Qd3 {[%clk 0:01:46]}  O-O {[%clk 0:01:57]} 17. h4 {[%clk 0:01:40]}  Rfc8 {[%clk 0:01:49]} 18. Bxa6 {[%clk 0:01:38]}  Rd8 {[%clk 0:01:44]} 19. Qe2 {[%clk 0:00:59]}  d5 {[%clk 0:01:38]} 20. exd5 {[%clk 0:00:55]}  Nxd5 {[%clk 0:01:36]} 21. Bc5 {[%clk 0:00:50]}  Nf4 {[%clk 0:01:25]} 22. Qf2 {[%clk 0:00:49]}  Bxb3 {[%clk 0:01:24]} 23. axb3 {[%clk 0:00:47]}  Nd4 {[%clk 0:01:23]} 24. Bxd4 {[%clk 0:00:41]}  exd4 {[%clk 0:01:22]} 25. Rxd4 {[%clk 0:00:41]}  Bf6 {[%clk 0:01:13]} 26. Rxd8+ {[%clk 0:00:30]}  Rxd8 {[%clk 0:01:12]} 27. g5 {[%clk 0:00:26]}  Bd4 {[%clk 0:01:11]} 28. Qd2 {[%clk 0:00:20]}  Bxb2+ {[%clk 0:01:09]} 29. Nxb2 {[%clk 0:00:19]}  Rxd2 {[%clk 0:01:08]} 30. Kxd2 {[%clk 0:00:20]}  Qc3+ {[%clk 0:01:07]} 31. Kc1 {[%clk 0:00:20]}  g6 {[%clk 0:01:05]} 32. Rd1 {[%clk 0:00:17]}  Qxf3 {[%clk 0:01:04]} 33. Bc4 {[%clk 0:00:17]}  Ne2+ {[%clk 0:01:02]} 34. Bxe2 {[%clk 0:00:17]}  Qxe2 {[%clk 0:01:03]} 35. Nd3 {[%clk 0:00:17]}  Qh2 {[%clk 0:01:00]} 36. Nxb4 {[%clk 0:00:15]}  Qf4+ {[%clk 0:01:00]} 37. Kb2 {[%clk 0:00:15]}  Qxb4 {[%clk 0:00:59]} 38. c4 {[%clk 0:00:15]}  h6 {[%clk 0:00:56]} 39. gxh6 {[%clk 0:00:15]}  Qe7 {[%clk 0:00:55]} 40. Rc1 {[%clk 0:00:14]}  Qxh4 {[%clk 0:00:49]} 41. c5 {[%clk 0:00:14]}  Qf6+ {[%clk 0:00:44]} 42. Kb1 {[%clk 0:00:13]}  Qc6 {[%clk 0:00:45]} 43. b4 {[%clk 0:00:12]}  f5 {[%clk 0:00:45]} 44. Rc2 {[%clk 0:00:12]}  f4 {[%clk 0:00:45]} 45. Kc1 {[%clk 0:00:13]}  g5 {[%clk 0:00:44]} 46. Kd2 {[%clk 0:00:12]}  g4 {[%clk 0:00:45]} 47. b5 {[%clk 0:00:13]}  Qxb5 {[%clk 0:00:43]} 48. c6 {[%clk 0:00:14]}  Qa5+ {[%clk 0:00:39]} 49. Ke2 {[%clk 0:00:06]}  Qc7 {[%clk 0:00:40]} 50. Kf2 {[%clk 0:00:05]}  Kh7 {[%clk 0:00:38]} 51. Kg2 {[%clk 0:00:05]}  Kxh6 {[%clk 0:00:37]} 52. Rc5 {[%clk 0:00:06]}  Kg6 {[%clk 0:00:37]} 53. Kf2 {[%clk 0:00:06]}  f3 {[%clk 0:00:35]} 54. Rc4 {[%clk 0:00:04]}  Kg5 {[%clk 0:00:34]} 55. Ke3 {[%clk 0:00:04]}  Kh4 {[%clk 0:00:33]} 56. Rc2 {[%clk 0:00:02]}  Kh3 {[%clk 0:00:33]} 57. Rc1 {[%clk 0:00:02]}  Qe5+ {[%clk 0:00:32]} 58. Kd3 {[%clk 0:00:02]}  Qd5+ {[%clk 0:00:31]} 59. Ke3 {[%clk 0:00:02]}  Qe6+ {[%clk 0:00:30]} 60. Kf4 {[%clk 0:00:02]}  Qh6+ {[%clk 0:00:29]} 61. Kf5 {[%clk 0:00:03]}  Qxc1 {[%clk 0:00:29]} 62. c7 {[%clk 0:00:04]}  Qxc7 {[%clk 0:00:28]} 63. Ke4 {[%clk 0:00:05]}  f2 {[%clk 0:00:27]} 64. Kf5 {[%clk 0:00:05]}  f1=Q+ {[%clk 0:00:26]} 65. Kg6 {[%clk 0:00:06]}  Qcf7+ {[%clk 0:00:24]} 66. Kg5 {[%clk 0:00:06]}  Q1f4# {[%clk 0:00:24]} 0-1

[Event "December 5 Late 2023"]
[Site "https://www.chess.com"]
[Date "2023.12.05"]
[Round "10"]
[White "Agibileg, Uurtsaikh"]
[Black "Uryupin, Igor"]
[Result "1-0"]
[Board "49"]
[TimeControl "180+1"]
[WhiteFideId "4901606"]
[BlackFideId "4182529"]
[WhiteElo "2619"]
[BlackElo "2482"]
[WhiteTeam "MGL"]
[BlackTeam "RUS"]
[WhiteClock "0:01:41"]
[BlackClock "0:01:22"]

1. d4 {[%clk 0:02:56]}  d5 {[%clk 0:02:58]} 2. c4 {[%clk 0:02:54]}  e6 {[%clk 0:02:57]} 3. Nc3 {[%clk 0:02:53]}  Nf6 {[%clk 0:02:57]} 4. cxd5 {[%clk 0:02:53]}  exd5 {[%clk 0:02:56]} 5. Bg5 {[%clk 0:02:52]}  Be7 {[%clk 0:02:55]} 6. e3 {[%clk 0:02:50]}  c6 {[%clk 0:02:54]} 7. Bd3 {[%clk 0:02:50]}  O-O {[%clk 0:02:44]} 8. Nge2 {[%clk 0:02:49]}  h6 {[%clk 0:02:42]} 9. Bh4 {[%clk 0:02:49]}  Nbd7 {[%clk 0:02:35]} 10. O-O {[%clk 0:02:48]}  Re8 {[%clk 0:02:35]} 11. Qc2 {[%clk 0:02:48]}  Nf8 {[%clk 0:02:34]} 12. f3 {[%clk 0:02:48]}  Be6 {[%clk 0:02:24]} 13. Kh1 {[%clk 0:02:45]}  Rc8 {[%clk 0:02:22]} 14. Rae1 {[%clk 0:02:44]}  b6 {[%clk 0:02:17]} 15. e4 {[%clk 0:02:36]}  c5 {[%clk 0:02:16]} 16. e5 {[%clk 0:02:31]}  N6d7 {[%clk 0:02:14]} 17. Bxe7 {[%clk 0:02:30]}  Qxe7 {[%clk 0:02:12]} 18. f4 {[%clk 0:02:30]}  cxd4 {[%clk 0:02:04]} 19. Nxd4 {[%clk 0:02:29]}  Nc5 {[%clk 0:02:03]} 20. f5 {[%clk 0:02:23]}  Bd7 {[%clk 0:01:59]} 21. f6 {[%clk 0:02:20]}  Qd8 {[%clk 0:01:58]} 22. fxg7 {[%clk 0:02:07]}  Kxg7 {[%clk 0:01:58]} 23. Bf5 {[%clk 0:02:04]}  Nfe6 {[%clk 0:01:47]} 24. Bxe6 {[%clk 0:01:57]}  Bxe6 {[%clk 0:01:45]} 25. Rf6 {[%clk 0:01:55]}  Ne4 {[%clk 0:01:41]} 26. Rxe4 {[%clk 0:01:45]}  dxe4 {[%clk 0:01:40]} 27. Qd2 {[%clk 0:01:44]}  Qxf6 {[%clk 0:01:29]} 28. exf6+ {[%clk 0:01:44]}  Kxf6 {[%clk 0:01:22]} 29. Nxe4+ {[%clk 0:01:41]} 1-0

[Event "December 5 Late 2023"]
[Site "https://www.chess.com"]
[Date "2023.12.05"]
[Round "10"]
[White "Iskusnyh, Sergei"]
[Black "Zhou, Qiyu"]
[Result "0-1"]
[Board "51"]
[TimeControl "180+1"]
[WhiteFideId "4120027"]
[BlackFideId "505161"]
[WhiteElo "2575"]
[BlackElo "2442"]
[WhiteTeam "RUS"]
[BlackTeam "CAN"]
[WhiteClock "0:00:00"]
[BlackClock "0:00:04"]

1. d4 {[%clk 0:03:00]}  Nf6 {[%clk 0:02:59]} 2. c4 {[%clk 0:03:00]}  e6 {[%clk 0:02:58]} 3. g3 {[%clk 0:03:00]}  d5 {[%clk 0:02:58]} 4. Bg2 {[%clk 0:03:00]}  Bb4+ {[%clk 0:02:58]} 5. Nd2 {[%clk 0:02:59]}  O-O {[%clk 0:02:58]} 6. Nf3 {[%clk 0:02:59]}  c6 {[%clk 0:02:38]} 7. O-O {[%clk 0:02:57]}  b6 {[%clk 0:02:37]} 8. Qc2 {[%clk 0:02:57]}  Ba6 {[%clk 0:02:33]} 9. b3 {[%clk 0:02:54]}  Nbd7 {[%clk 0:02:32]} 10. Bb2 {[%clk 0:02:54]}  Rc8 {[%clk 0:02:32]} 11. Rac1 {[%clk 0:02:43]}  Qe7 {[%clk 0:02:23]} 12. e4 {[%clk 0:02:26]}  dxe4 {[%clk 0:02:21]} 13. Nxe4 {[%clk 0:02:26]}  Nxe4 {[%clk 0:02:21]} 14. Qxe4 {[%clk 0:02:25]}  Nf6 {[%clk 0:02:22]} 15. Qh4 {[%clk 0:02:16]}  Ba3 {[%clk 0:02:21]} 16. Bxa3 {[%clk 0:02:10]}  Qxa3 {[%clk 0:02:22]} 17. Ne5 {[%clk 0:02:10]}  Bb7 {[%clk 0:02:14]} 18. Rc2 {[%clk 0:02:05]}  Qd6 {[%clk 0:02:11]} 19. c5 {[%clk 0:02:03]}  bxc5 {[%clk 0:02:05]} 20. Rxc5 {[%clk 0:01:59]}  Rfd8 {[%clk 0:02:03]} 21. Nc4 {[%clk 0:01:36]}  Qxd4 {[%clk 0:01:58]} 22. Qxd4 {[%clk 0:01:37]}  Rxd4 {[%clk 0:01:58]} 23. Na5 {[%clk 0:01:36]}  Ba6 {[%clk 0:01:53]} 24. Rfc1 {[%clk 0:01:33]}  Nd7 {[%clk 0:01:19]} 25. Rxc6 {[%clk 0:01:30]}  Rxc6 {[%clk 0:01:18]} 26. Nxc6 {[%clk 0:01:29]}  Rd2 {[%clk 0:01:14]} 27. a4 {[%clk 0:01:10]}  h5 {[%clk 0:00:56]} 28. b4 {[%clk 0:01:06]}  Bd3 {[%clk 0:00:50]} 29. Nxa7 {[%clk 0:01:03]}  Ne5 {[%clk 0:00:48]} 30. h3 {[%clk 0:00:53]}  Rb2 {[%clk 0:00:42]} 31. b5 {[%clk 0:00:51]}  Nc4 {[%clk 0:00:39]} 32. Nc6 {[%clk 0:00:45]}  f6 {[%clk 0:00:28]} 33. Bf1 {[%clk 0:00:43]}  Bxf1 {[%clk 0:00:27]} 34. Kxf1 {[%clk 0:00:43]}  Nd2+ {[%clk 0:00:25]} 35. Kg1 {[%clk 0:00:43]}  e5 {[%clk 0:00:10]} 36. Nd8 {[%clk 0:00:28]}  Nf3+ {[%clk 0:00:03]} 37. Kg2 {[%clk 0:00:27]}  e4 {[%clk 0:00:03]} 38. Ne6 {[%clk 0:00:25]}  Nd2 {[%clk 0:00:01]} 39. Nc5 {[%clk 0:00:24]}  e3 {[%clk 0:00:01]} 40. Kg1 {[%clk 0:00:18]}  exf2+ {[%clk 0:00:02]} 41. Kg2 {[%clk 0:00:16]}  Nb3 {[%clk 0:00:02]} 42. Rf1 {[%clk 0:00:17]}  Nxc5 {[%clk 0:00:02]} 43. Rxf2 {[%clk 0:00:16]}  Rxf2+ {[%clk 0:00:03]} 44. Kxf2 {[%clk 0:00:17]}  Nxa4 {[%clk 0:00:03]} 45. Ke3 {[%clk 0:00:18]}  Nb6 {[%clk 0:00:04]} 46. Kd4 {[%clk 0:00:18]}  Kf7 {[%clk 0:00:05]} 47. Kc5 {[%clk 0:00:19]}  Nd7+ {[%clk 0:00:05]} 48. Kd6 {[%clk 0:00:20]}  Nb6 {[%clk 0:00:05]} 49. Kc7 {[%clk 0:00:19]}  Nc4 {[%clk 0:00:05]} 50. Kc6 {[%clk 0:00:19]}  Ke6 {[%clk 0:00:06]} 51. Kc5 {[%clk 0:00:19]}  Nd6 {[%clk 0:00:05]} 52. b6 {[%clk 0:00:18]}  Nb7+ {[%clk 0:00:06]} 53. Kc6 {[%clk 0:00:18]}  Na5+ {[%clk 0:00:06]} 54. Kb5 {[%clk 0:00:18]}  Nb7 {[%clk 0:00:07]} 55. Kc6 {[%clk 0:00:18]}  Nd6 {[%clk 0:00:07]} 56. h4 {[%clk 0:00:17]}  g5 {[%clk 0:00:07]} 57. hxg5 {[%clk 0:00:16]}  fxg5 {[%clk 0:00:08]} 58. Kc5 {[%clk 0:00:16]}  Nb7+ {[%clk 0:00:04]} 59. Kc6 {[%clk 0:00:16]}  Nd6 {[%clk 0:00:03]} 60. Kc5 {[%clk 0:00:15]}  Ke5 {[%clk 0:00:04]} 61. Kc6 {[%clk 0:00:14]}  h4 {[%clk 0:00:04]} 62. gxh4 {[%clk 0:00:14]}  gxh4 {[%clk 0:00:05]} 63. b7 {[%clk 0:00:00]}  Nxb7 {[%clk 0:00:04]} 0-1

[Event "December 5 Late 2023"]
[Site "https://www.chess.com"]
[Date "2023.12.05"]
[Round "10"]
[White "aksuliini1"]
[Black "Spichkin, Alexander"]
[Result "0-1"]
[Board "53"]
[TimeControl "180+1"]
[BlackFideId "4144074"]
[WhiteElo "2563"]
[BlackElo "2414"]
[BlackTeam "RUS"]
[WhiteClock "0:00:38"]
[BlackClock "0:01:52"]

1. e4 {[%clk 0:02:59]}  e5 {[%clk 0:02:57]} 2. Nf3 {[%clk 0:02:31]}  d5 {[%clk 0:02:50]} 3. Nxe5 {[%clk 0:02:24]}  Bd6 {[%clk 0:02:50]} 4. d4 {[%clk 0:02:20]}  dxe4 {[%clk 0:02:50]} 5. Nc4 {[%clk 0:02:13]}  Nf6 {[%clk 0:02:49]} 6. Nc3 {[%clk 0:02:11]}  Nc6 {[%clk 0:02:49]} 7. Be2 {[%clk 0:02:10]}  Bf5 {[%clk 0:02:44]} 8. Nxd6+ {[%clk 0:02:09]}  Qxd6 {[%clk 0:02:44]} 9. Be3 {[%clk 0:02:01]}  O-O-O {[%clk 0:02:44]} 10. Nb5 {[%clk 0:01:57]}  Qe7 {[%clk 0:02:35]} 11. c3 {[%clk 0:01:56]}  a6 {[%clk 0:02:35]} 12. Na3 {[%clk 0:01:56]}  Nd5 {[%clk 0:02:35]} 13. Qd2 {[%clk 0:01:56]}  Bg6 {[%clk 0:02:33]} 14. O-O-O {[%clk 0:01:50]}  f5 {[%clk 0:02:27]} 15. g3 {[%clk 0:01:49]}  Rhf8 {[%clk 0:02:26]} 16. Bg5 {[%clk 0:01:43]}  Nf6 {[%clk 0:02:25]} 17. Nc4 {[%clk 0:01:40]}  Bf7 {[%clk 0:02:24]} 18. Kb1 {[%clk 0:01:37]}  h6 {[%clk 0:02:21]} 19. Bxf6 {[%clk 0:01:36]}  Qxf6 {[%clk 0:02:21]} 20. Ne3 {[%clk 0:01:34]}  g5 {[%clk 0:02:19]} 21. f3 {[%clk 0:01:30]}  f4 {[%clk 0:02:10]} 22. Ng4 {[%clk 0:01:26]}  Qg6 {[%clk 0:02:08]} 23. fxe4 {[%clk 0:01:25]}  Qxe4+ {[%clk 0:02:07]} 24. Bd3 {[%clk 0:01:25]}  Qd5 {[%clk 0:02:07]} 25. b3 {[%clk 0:01:20]}  Bh5 {[%clk 0:01:59]} 26. h3 {[%clk 0:00:55]}  fxg3 {[%clk 0:01:58]} 27. Rhg1 {[%clk 0:00:46]}  Rf2 {[%clk 0:01:56]} 28. Qe3 {[%clk 0:00:45]}  Qa5 {[%clk 0:01:54]} 29. Rxg3 {[%clk 0:00:41]}  Qxa2+ {[%clk 0:01:52]} 30. Kc1 {[%clk 0:00:38]}  Qb2# {[%clk 0:01:52]} 0-1

[Event "December 5 Late 2023"]
[Site "https://www.chess.com"]
[Date "2023.12.05"]
[Round "10"]
[White "Monteiro, Luis Felipe Furtado"]
[Black "Tikhonov, Viacheslav"]
[Result "0-1"]
[Board "57"]
[TimeControl "180+1"]
[WhiteFideId "22702806"]
[BlackFideId "44196407"]
[WhiteElo "2122"]
[BlackElo "2525"]
[WhiteTeam "BRA"]
[BlackTeam "RUS"]
[WhiteClock "0:01:18"]
[BlackClock "0:00:43"]

1. d4 {[%clk 0:03:00]}  Nf6 {[%clk 0:02:57]} 2. c4 {[%clk 0:03:00]}  g6 {[%clk 0:02:56]} 3. Nf3 {[%clk 0:02:59]}  Bg7 {[%clk 0:02:56]} 4. Nc3 {[%clk 0:02:58]}  d5 {[%clk 0:02:57]} 5. Qb3 {[%clk 0:02:55]}  c6 {[%clk 0:02:56]} 6. cxd5 {[%clk 0:02:54]}  cxd5 {[%clk 0:02:57]} 7. Bf4 {[%clk 0:02:52]}  O-O {[%clk 0:02:57]} 8. e3 {[%clk 0:02:53]}  e6 {[%clk 0:02:58]} 9. Bxb8 {[%clk 0:02:47]}  Rxb8 {[%clk 0:02:57]} 10. Be2 {[%clk 0:02:47]}  Bd7 {[%clk 0:02:49]} 11. O-O {[%clk 0:02:47]}  Qa5 {[%clk 0:02:43]} 12. Rac1 {[%clk 0:02:45]}  Rfc8 {[%clk 0:02:43]} 13. Ne5 {[%clk 0:02:44]}  Be8 {[%clk 0:02:39]} 14. Nd3 {[%clk 0:02:34]}  b6 {[%clk 0:02:25]} 15. a3 {[%clk 0:02:34]}  Bf8 {[%clk 0:02:20]} 16. Nb4 {[%clk 0:02:31]}  Ne4 {[%clk 0:01:56]} 17. Nxe4 {[%clk 0:02:15]}  dxe4 {[%clk 0:01:57]} 18. d5 {[%clk 0:01:59]}  Bxb4 {[%clk 0:01:40]} 19. dxe6 {[%clk 0:01:57]}  Be7 {[%clk 0:01:33]} 20. exf7+ {[%clk 0:01:42]}  Bxf7 {[%clk 0:01:34]} 21. Bc4 {[%clk 0:01:36]}  Rxc4 {[%clk 0:01:07]} 22. Rxc4 {[%clk 0:01:35]}  Qd5 {[%clk 0:00:52]} 23. Rfc1 {[%clk 0:01:26]}  Rd8 {[%clk 0:00:53]} 24. Qa4 {[%clk 0:01:23]}  b5 {[%clk 0:00:46]} 25. Qxa7 {[%clk 0:01:18]}  Qd1+ {[%clk 0:00:43]} 0-1

[Event "December 5 Late 2023"]
[Site "https://www.chess.com"]
[Date "2023.12.05"]
[Round "10"]
[White "Ozates, Tuna"]
[Black "Argandona Riveiro, Inigo"]
[Result "0-1"]
[Board "60"]
[TimeControl "180+1"]
[WhiteFideId "6354521"]
[BlackFideId "2212072"]
[WhiteElo "2560"]
[BlackElo "2448"]
[WhiteTeam "TUR"]
[BlackTeam "ESP"]
[WhiteClock "0:02:31"]
[BlackClock "0:02:00"]

1. e4 {[%clk 0:03:00]}  d6 {[%clk 0:03:00]} 2. d4 {[%clk 0:02:59]}  Nf6 {[%clk 0:03:01]} 3. Nc3 {[%clk 0:03:00]}  e5 {[%clk 0:03:02]} 4. dxe5 {[%clk 0:03:00]}  dxe5 {[%clk 0:03:03]} 5. Qxd8+ {[%clk 0:03:01]}  Kxd8 {[%clk 0:03:04]} 6. Bg5 {[%clk 0:03:01]}  Be6 {[%clk 0:03:04]} 7. g3 {[%clk 0:02:49]}  h6 {[%clk 0:02:58]} 8. Bxf6+ {[%clk 0:02:46]}  gxf6 {[%clk 0:02:59]} 9. Bh3 {[%clk 0:02:43]}  c6 {[%clk 0:02:59]} 10. Rd1+ {[%clk 0:02:41]}  Kc7 {[%clk 0:02:58]} 11. Nb1 {[%clk 0:02:41]}  Bxa2 {[%clk 0:02:47]} 12. b3 {[%clk 0:02:40]}  Bxb1 {[%clk 0:02:46]} 13. Rxb1 {[%clk 0:02:41]}  Na6 {[%clk 0:02:43]} 14. Ne2 {[%clk 0:02:40]}  Bb4+ {[%clk 0:02:33]} 15. c3 {[%clk 0:02:40]}  Be7 {[%clk 0:02:32]} 16. Kd2 {[%clk 0:02:36]}  Nc5 {[%clk 0:02:30]} 17. f3 {[%clk 0:02:36]}  Rhd8+ {[%clk 0:02:24]} 18. Kc2 {[%clk 0:02:36]}  a5 {[%clk 0:02:21]} 19. Rhd1 {[%clk 0:02:34]}  Rxd1 {[%clk 0:02:14]} 20. Rxd1 {[%clk 0:02:35]}  Rd8 {[%clk 0:02:14]} 21. Ra1 {[%clk 0:02:36]}  Kb6 {[%clk 0:02:09]} 22. b4 {[%clk 0:02:36]}  axb4 {[%clk 0:02:07]} 23. cxb4 {[%clk 0:02:36]}  Na6 {[%clk 0:02:06]} 24. b5 {[%clk 0:02:34]}  Nb4+ {[%clk 0:02:02]} 25. Kc3 {[%clk 0:02:31]}  Rd3+ {[%clk 0:02:00]} 0-1

[Event "December 5 Late 2023"]
[Site "https://www.chess.com"]
[Date "2023.12.05"]
[Round "10"]
[White "Bonin, Jay"]
[Black "Krzywda, Andrzej"]
[Result "0-1"]
[Board "66"]
[TimeControl "180+1"]
[WhiteFideId "2000644"]
[BlackFideId "1114565"]
[WhiteElo "2400"]
[BlackElo "2510"]
[WhiteTeam "USA"]
[BlackTeam "POL"]
[WhiteClock "0:00:00"]
[BlackClock "0:00:09"]

1. d4 {[%clk 0:02:58]}  d5 {[%clk 0:03:00]} 2. Nf3 {[%clk 0:02:58]}  Nf6 {[%clk 0:03:00]} 3. c4 {[%clk 0:02:57]}  dxc4 {[%clk 0:03:01]} 4. e3 {[%clk 0:02:56]}  e6 {[%clk 0:03:01]} 5. Bxc4 {[%clk 0:02:55]}  c5 {[%clk 0:03:02]} 6. dxc5 {[%clk 0:02:54]}  Qxd1+ {[%clk 0:03:01]} 7. Kxd1 {[%clk 0:02:54]}  Bxc5 {[%clk 0:03:02]} 8. Ke2 {[%clk 0:02:54]}  O-O {[%clk 0:03:02]} 9. Nbd2 {[%clk 0:02:53]}  a6 {[%clk 0:02:54]} 10. a3 {[%clk 0:02:53]}  b5 {[%clk 0:02:50]} 11. Bd3 {[%clk 0:02:52]}  Bb7 {[%clk 0:02:49]} 12. b4 {[%clk 0:02:51]}  Bb6 {[%clk 0:02:49]} 13. Bb2 {[%clk 0:02:51]}  Rd8 {[%clk 0:02:46]} 14. Rhc1 {[%clk 0:02:47]}  Nbd7 {[%clk 0:02:41]} 15. Bd4 {[%clk 0:02:34]}  Bxd4 {[%clk 0:02:35]} 16. Nxd4 {[%clk 0:02:33]}  Ne5 {[%clk 0:02:35]} 17. Bc2 {[%clk 0:02:21]}  Bxg2 {[%clk 0:02:27]} 18. f3 {[%clk 0:02:08]}  Bh3 {[%clk 0:01:46]} 19. N2b3 {[%clk 0:02:03]}  Nd5 {[%clk 0:01:39]} 20. Be4 {[%clk 0:01:54]}  Rac8 {[%clk 0:01:29]} 21. Bxd5 {[%clk 0:01:37]}  exd5 {[%clk 0:01:25]} 22. Nc5 {[%clk 0:01:27]}  Rd6 {[%clk 0:01:24]} 23. Kf2 {[%clk 0:01:18]}  Re8 {[%clk 0:01:22]} 24. a4 {[%clk 0:01:14]}  Nc4 {[%clk 0:01:15]} 25. axb5 {[%clk 0:01:09]}  axb5 {[%clk 0:01:16]} 26. Nxb5 {[%clk 0:01:04]}  Rg6 {[%clk 0:01:16]} 27. Rg1 {[%clk 0:01:01]}  Rxg1 {[%clk 0:01:10]} 28. Rxg1 {[%clk 0:00:59]}  Rb8 {[%clk 0:01:07]} 29. Ra1 {[%clk 0:00:45]}  h5 {[%clk 0:00:55]} 30. Nc7 {[%clk 0:00:44]}  Rxb4 {[%clk 0:00:53]} 31. Nxd5 {[%clk 0:00:37]}  Rb2+ {[%clk 0:00:50]} 32. Kg3 {[%clk 0:00:37]}  Be6 {[%clk 0:00:42]} 33. Nxe6 {[%clk 0:00:36]}  fxe6 {[%clk 0:00:43]} 34. Nf4 {[%clk 0:00:35]}  Nxe3 {[%clk 0:00:40]} 35. Nxe6 {[%clk 0:00:31]}  Kf7 {[%clk 0:00:33]} 36. Ng5+ {[%clk 0:00:30]}  Kg6 {[%clk 0:00:33]} 37. h4 {[%clk 0:00:29]}  Nf5+ {[%clk 0:00:33]} 38. Kh3 {[%clk 0:00:27]}  Rb6 {[%clk 0:00:32]} 39. Re1 {[%clk 0:00:26]}  Nd4 {[%clk 0:00:31]} 40. Re4 {[%clk 0:00:25]}  Nf5 {[%clk 0:00:27]} 41. Re6+ {[%clk 0:00:23]}  Rxe6 {[%clk 0:00:27]} 42. Nxe6 {[%clk 0:00:23]}  Kf6 {[%clk 0:00:27]} 43. Nf4 {[%clk 0:00:22]}  g6 {[%clk 0:00:27]} 44. Ne2 {[%clk 0:00:21]}  Ne7 {[%clk 0:00:25]} 45. Nd4 {[%clk 0:00:19]}  Ke5 {[%clk 0:00:25]} 46. Ne2 {[%clk 0:00:18]}  Nf5 {[%clk 0:00:25]} 47. Ng3 {[%clk 0:00:14]}  Kf4 {[%clk 0:00:19]} 48. Ne4 {[%clk 0:00:13]}  Kxf3 {[%clk 0:00:16]} 49. Nc5 {[%clk 0:00:12]}  Kf4 {[%clk 0:00:13]} 50. Ne6+ {[%clk 0:00:11]}  Ke5 {[%clk 0:00:13]} 51. Nf8 {[%clk 0:00:11]}  Ne7 {[%clk 0:00:13]} 52. Nh7 {[%clk 0:00:10]}  Kf4 {[%clk 0:00:13]} 53. Ng5 {[%clk 0:00:08]}  Nf5 {[%clk 0:00:13]} 54. Nf7 {[%clk 0:00:07]}  Nd4 {[%clk 0:00:11]} 55. Nh8 {[%clk 0:00:07]}  Kf5 {[%clk 0:00:12]} 56. Kg3 {[%clk 0:00:07]}  Nc6 {[%clk 0:00:10]} 57. Nf7 {[%clk 0:00:06]}  Ne5 {[%clk 0:00:11]} 58. Ng5 {[%clk 0:00:05]}  Kf6 {[%clk 0:00:10]} 59. Ne4+ {[%clk 0:00:04]}  Kf5 {[%clk 0:00:10]} 60. Nd6+ {[%clk 0:00:04]}  Ke6 {[%clk 0:00:10]} 61. Ne4 {[%clk 0:00:04]}  Nf7 {[%clk 0:00:10]} 62. Nf2 {[%clk 0:00:04]}  Kf5 {[%clk 0:00:11]} 63. Nd3 {[%clk 0:00:01]}  Nd6 {[%clk 0:00:09]} 64. Nc5 {[%clk 0:00:00]}  Ne4+ {[%clk 0:00:09]} 0-1